Workbook

Sheet Sheet1
B1: Exemplo 5 - Simulação (NPA escolhidosde antemão)
B3: Chegada Exponencial de média | E3: 15
B4: Serviço Uniforme de min - máx | E4: 10 | F4: 15
B6: Nº Clientes | C6: 5
G7: Próx. | I7: Próx. | J7: Próxima | K7: Próxima | L7: Próximo | M7: Tempo | O7: NPA | P7: NPA | Q7: Nº | R7: Intervalo | S7: Tempo | T7: Tempo | U7: Tempo | V7: Tempo | W7: Tempo
B8: Cliente Ch. | C8: Cliente Nº | D8: T. Simul. | E8: Nº Clientes | F8: NPA Ch | G8: Int. CH | H8: NPA Par | I8: T. Serv. | J8: Chegada | K8: Partida | L8: Acontec. | M8: Espera | O8: Chegadas | P8: Seviço | Q8: Clientes | R8: Chegadas | S8: Serviço | T8: Chegada | U8: Partida | V8: Fila | W8: Sistema
B9: 1 | C9: =SUM($B$9:B9) -> 1 | D9: 0 | E9: 1 | F9: 0.059 | G9: =-$E$3*LN(F9) -> 42.45326753 | H9: 0.673 | I9: =$E$4+H9*($F$4-$E$4) -> 13.365 | J9: =+D9+G9 -> 42.45326753 | K9: =+D9+I9 -> 13.365 | L9: =IF(J9<K9,"chegada","partida") -> partida | M9: =IF(E9<2,0,(E9-1)*(D10-D9)) -> 0 | O9: 0.059 | P9: 0.673 | Q9: 1 | R9: =-$E$3*LN(O9) -> 42.45326753 | S9: =+$E$4+P9*($F$4-$E$4) -> 13.365 | T9: 0 | U9: =+T9+S9 -> 13.365 | V9: =+U9-T9-S9 -> 0 | W9: =+U9-T9 -> 13.365
B10: =IF(SUM(E9:L9)=0,0,IF(L9="partida",0,1)) -> 0 | C10: =SUM($B$9:B10) -> 1 | D10: =IF(L9="partida",K9,J9) -> 13.365 | E10: =IF(L9="partida",E9-1,E9+1) -> 0 | F10: =IF(L9="partida", 0,RAND()) -> 0 | G10: =IF(F10=0,0,-$E$3*LN(F10)) -> 0 | H10: =IF(L9="partida",IF(E10=0,0,RAND()),IF(E10>1,0,RAND())) -> 0 | I10: =IF(H10=0,0,$E$4+H10*($F$4-$E$4)) -> 0 | J10: =IF(C10=$C$6,0,+J9+G10) -> 42.45326753 | K10: =IF(D10<K9,K9,IF(I10=0,0,D10+I10)) -> 0 | L10: =IF(C10<$C$6,IF(C10=$C$6,"partida",IF(K10=0,"chegada",IF(J10<K10,"chegada","partida"))),IF(E10=0,0,IF(C10=$C$6,"partida",IF(K10=0,"chegada",IF(J10<K10,"chegada","partida"))))) -> chegada | M10: 0 | O10: 0.48 | P10: 0.949 | Q10: =+Q9+1 -> 2 | R10: =-$E$3*LN(O10) -> 11.00953763 | S10: =+$E$4+P10*($F$4-$E$4) -> 14.745 | T10: =+R9+T9 -> 42.45326753 | U10: =MAX(T10,U9)+S10 -> 57.19826753 | V10: =+U10-T10-S10 -> 0 | W10: =+U10-T10 -> 14.745
B11: 1 | C11: =SUM($B$9:B11) -> 2 | D11: 42.45326753 | E11: =IF(L10="partida",E10-1,E10+1) -> 1 | F11: =IF(L10="partida", 0,0.48) -> 0.48 | G11: =IF(F11=0,0,-$E$3*LN(F11)) -> 11.00953763 | H11: =IF(L10="partida",IF(E11=0,0,0.949),IF(E11>1,0,0.949)) -> 0.949 | I11: =IF(H11=0,0,$E$4+H11*($F$4-$E$4)) -> 14.745 | J11: 53.46280515 | K11: =IF(D11<K10,K10,IF(I11=0,0,D11+I11)) -> 57.19826753 | L11: chegada | M11: 0 | O11: 0.614 | P11: 0.593 | Q11: =+Q10+1 -> 3 | R11: =-$E$3*LN(O11) -> 7.316405263 | S11: =+$E$4+P11*($F$4-$E$4) -> 12.965 | T11: =+R10+T10 -> 53.46280515 | U11: =MAX(T11,U10)+S11 -> 70.16326753 | V11: =+U11-T11-S11 -> 3.735462374 | W11: =+U11-T11 -> 16.70046237
B12: 1 | C12: =SUM($B$9:B12) -> 3 | D12: 53.46280515 | E12: =IF(L11="partida",E11-1,E11+1) -> 2 | F12: =IF(L11="partida", 0,0.614) -> 0.614 | G12: 7.316405263 | H12: =IF(L11="partida",IF(E12=0,0,RAND()),IF(E12>1,0,RAND())) -> 0 | I12: =IF(H12=0,0,$E$4+H12*($F$4-$E$4)) -> 0 | J12: 60.77921041 | K12: 57.19826753 | L12: partida | M12: 3.735462374 | O12: 0.934 | P12: 0.178 | Q12: =+Q11+1 -> 4 | R12: =-$E$3*LN(O12) -> 1.024182611 | S12: =+$E$4+P12*($F$4-$E$4) -> 10.89 | T12: =+R11+T11 -> 60.77921041 | U12: =MAX(T12,U11)+S12 -> 81.05326753 | V12: =+U12-T12-S12 -> 9.384057111 | W12: =+U12-T12 -> 20.27405711
B13: 0 | C13: =SUM($B$9:B13) -> 3 | D13: 57.19826753 | E13: =IF(L12="partida",E12-1,E12+1) -> 1 | F13: =IF(L12="partida", 0,RAND()) -> 0 | G13: 0 | H13: =IF(L12="partida",IF(E13=0,0,0.593),IF(E13>1,0,0.593)) -> 0.593 | I13: 12.965 | J13: 60.77921041 | K13: 70.16326753 | L13: chegada | M13: 0 | O13: 0.238 | P13: 0.347 | Q13: =+Q12+1 -> 5 | R13: =-$E$3*LN(O13) -> 21.53226908 | S13: =+$E$4+P13*($F$4-$E$4) -> 11.735 | T13: =+R12+T12 -> 61.80339303 | U13: =MAX(T13,U12)+S13 -> 92.78826753 | V13: =+U13-T13-S13 -> 19.2498745 | W13: =+U13-T13 -> 30.9848745
B14: 1 | C14: =SUM($B$9:B14) -> 4 | D14: 60.77921041 | E14: =IF(L13="partida",E13-1,E13+1) -> 2 | F14: =IF(L13="partida", 0,0.934) -> 0.934 | G14: 1.024182611 | H14: =IF(L13="partida",IF(E14=0,0,RAND()),IF(E14>1,0,RAND())) -> 0 | I14: 0 | J14: 61.80339303 | K14: 70.16326753 | L14: chegada | M14: 1.024182611
B15: 1 | C15: =SUM($B$9:B15) -> 5 | D15: 61.80339303 | E15: =IF(L14="partida",E14-1,E14+B15) -> 3 | F15: =IF(C15=$C$6,0, RAND()) -> 0 | G15: 0 | H15: =IF(L14="partida",IF(E15=0,0,RAND()),IF(E15>1,0,RAND())) -> 0 | I15: 0 | J15: 0 | K15: 70.16326753 | L15: partida | M15: 16.719749
B16: 0 | C16: =SUM($B$9:B16) -> 5 | D16: 70.16326753 | E16: =IF(L15="partida",E15-1,E15+B16) -> 2 | F16: 0 | G16: 0 | H16: =IF(L15="partida",IF(E16=0,0,0.178),IF(E16>1,0,0.178)) -> 0.178 | I16: 10.89 | J16: 0 | K16: 81.05326753 | L16: =IF(C16<$C$6,IF(C16=$C$6,"partida",IF(K16=0,"chegada",IF(J16<K16,"chegada","partida"))),IF(E16=0,0,IF(C16=$C$6,"partida",IF(K16=0,"chegada",IF(J16<K16,"chegada","partida"))))) -> partida | M16: 10.89
B17: 0 | C17: =SUM($B$9:B17) -> 5 | D17: 81.05326753 | E17: 1 | F17: 0 | G17: 0 | H17: =IF(L16="partida",IF(E17=0,0,0.347),IF(E17>1,0,0.347)) -> 0.347 | I17: 11.735 | J17: 0 | K17: 92.78826753 | L17: =IF(C17<$C$6,IF(C17=$C$6,"partida",IF(K17=0,"chegada",IF(J17<K17,"chegada","partida"))),IF(E17=0,0,IF(C17=$C$6,"partida",IF(K17=0,"chegada",IF(J17<K17,"chegada","partida"))))) -> partida | M17: 0
B18: 0 | C18: =SUM($B$9:B18) -> 5 | D18: 92.78826753 | E18: 0 | F18: 0 | G18: 0 | H18: =IF(L17=0,0,IF(L17="partida",IF(E18=0,0,RAND()),IF(E18>1,0,RAND()))) -> 0 | I18: 0 | J18: 0 | K18: 0 | L18: =IF(C18<$C$6,IF(C18=$C$6,"partida",IF(K18=0,"chegada",IF(J18<K18,"chegada","partida"))),IF(E18=0,0,IF(C18=$C$6,"partida",IF(K18=0,"chegada",IF(J18<K18,"chegada","partida"))))) -> 0 | M18: 0
B19: 0 | C19: =SUM($B$9:B19) -> 5 | D19: 0 | E19: 0 | F19: 0 | G19: 0 | H19: =IF(L18=0,0,IF(L18="partida",IF(E19=0,0,RAND()),IF(E19>1,0,RAND()))) -> 0 | I19: 0 | J19: 0 | K19: 0 | L19: =IF(C19<$C$6,IF(C19=$C$6,"partida",IF(K19=0,"chegada",IF(J19<K19,"chegada","partida"))),IF(E19=0,0,IF(C19=$C$6,"partida",IF(K19=0,"chegada",IF(J19<K19,"chegada","partida"))))) -> 0 | M19: 0
B20: 0 | C20: =SUM($B$9:B20) -> 5 | D20: 0 | E20: 0 | F20: 0 | G20: 0 | H20: =IF(L19=0,0,IF(L19="partida",IF(E20=0,0,RAND()),IF(E20>1,0,RAND()))) -> 0 | I20: 0 | J20: 0 | K20: 0 | L20: 0 | M20: 0
B21: 0 | C21: =SUM($B$9:B21) -> 5 | D21: 0 | E21: 0 | F21: 0 | G21: 0 | H21: 0 | I21: 0 | J21: 0 | K21: 0 | L21: 0 | M21: 0
B22: 0 | C22: =SUM($B$9:B22) -> 5 | D22: 0 | E22: 0 | F22: 0 | G22: 0 | H22: 0 | I22: 0 | J22: 0 | K22: 0 | L22: 0 | M22: 0
B23: 0 | C23: =SUM($B$9:B23) -> 5 | D23: 0 | E23: 0 | F23: 0 | G23: 0 | H23: 0 | I23: 0 | J23: 0 | K23: 0 | L23: 0 | M23: 0
B24: 0 | C24: =SUM($B$9:B24) -> 5 | D24: 0 | E24: 0 | F24: 0 | G24: 0 | H24: 0 | I24: 0 | J24: 0 | K24: 0 | L24: 0 | M24: 0
B25: 0 | C25: =SUM($B$9:B25) -> 5 | D25: 0 | E25: 0 | F25: 0 | G25: 0 | H25: 0 | I25: 0 | J25: 0 | K25: 0 | L25: 0 | M25: 0
B26: 0 | C26: =SUM($B$9:B26) -> 5 | D26: 0 | E26: 0 | F26: 0 | G26: 0 | H26: 0 | I26: 0 | J26: 0 | K26: 0 | L26: 0 | M26: 0
B27: 0 | C27: =SUM($B$9:B27) -> 5 | D27: 0 | E27: 0 | F27: 0 | G27: 0 | H27: 0 | I27: 0 | J27: 0 | K27: 0 | L27: 0 | M27: 0
B28: 0 | C28: =SUM($B$9:B28) -> 5 | D28: 0 | E28: 0 | F28: 0 | G28: 0 | H28: 0 | I28: 0 | J28: 0 | K28: 0 | L28: 0 | M28: 0
B29: 0 | C29: =SUM($B$9:B29) -> 5 | D29: 0 | E29: 0 | F29: 0 | G29: 0 | H29: 0 | I29: 0 | J29: 0 | K29: 0 | L29: 0 | M29: 0
B30: 0 | C30: =SUM($B$9:B30) -> 5 | D30: =IF(L29="partida",K29,J29) -> 0 | E30: =IF(L29="partida",E29-1,E29+B30) -> 0 | F30: =IF(C30=$C$6,0, RAND()) -> 0 | G30: 0 | H30: =IF(L29=0,0,IF(L29="partida",IF(E30=0,0,RAND()),IF(E30>1,0,RAND()))) -> 0 | I30: 0 | J30: =IF(C30=$C$6,0,+J29+G30) -> 0 | K30: =IF(D30<K29,K29,IF(I30=0,0,D30+I30)) -> 0 | L30: =IF(C30<$C$6,IF(C30=$C$6,"partida",IF(K30=0,"chegada",IF(J30<K30,"chegada","partida"))),IF(E30=0,0,IF(C30=$C$6,"partida",IF(K30=0,"chegada",IF(J30<K30,"chegada","partida"))))) -> 0 | M30: =IF(E30<2,0,(E30-1)*(D31-D30)) -> 0
B31: 0 | C31: =SUM($B$9:B31) -> 5 | D31: =IF(L30="partida",K30,J30) -> 0 | E31: =IF(L30="partida",E30-1,E30+B31) -> 0 | F31: =IF(C31=$C$6,0, RAND()) -> 0 | G31: 0 | H31: =IF(L30=0,0,IF(L30="partida",IF(E31=0,0,RAND()),IF(E31>1,0,RAND()))) -> 0 | I31: 0 | J31: =IF(C31=$C$6,0,+J30+G31) -> 0 | K31: =IF(D31<K30,K30,IF(I31=0,0,D31+I31)) -> 0 | L31: =IF(C31<$C$6,IF(C31=$C$6,"partida",IF(K31=0,"chegada",IF(J31<K31,"chegada","partida"))),IF(E31=0,0,IF(C31=$C$6,"partida",IF(K31=0,"chegada",IF(J31<K31,"chegada","partida"))))) -> 0 | M31: =IF(E31<2,0,(E31-1)*(D32-D31)) -> 0
B32: 0 | C32: =SUM($B$9:B32) -> 5 | D32: =IF(L31="partida",K31,J31) -> 0 | E32: =IF(L31="partida",E31-1,E31+B32) -> 0 | F32: =IF(C32=$C$6,0, RAND()) -> 0 | G32: 0 | H32: =IF(L31=0,0,IF(L31="partida",IF(E32=0,0,RAND()),IF(E32>1,0,RAND()))) -> 0 | I32: 0 | J32: =IF(C32=$C$6,0,+J31+G32) -> 0 | K32: =IF(D32<K31,K31,IF(I32=0,0,D32+I32)) -> 0 | L32: =IF(C32<$C$6,IF(C32=$C$6,"partida",IF(K32=0,"chegada",IF(J32<K32,"chegada","partida"))),IF(E32=0,0,IF(C32=$C$6,"partida",IF(K32=0,"chegada",IF(J32<K32,"chegada","partida"))))) -> 0 | M32: =IF(E32<2,0,(E32-1)*(D33-D32)) -> 0
B33: 0 | C33: =SUM($B$9:B33) -> 5 | D33: =IF(L32="partida",K32,J32) -> 0 | E33: =IF(L32="partida",E32-1,E32+B33) -> 0 | F33: =IF(C33=$C$6,0, RAND()) -> 0 | G33: =-15*LN(1-F33) -> 0 | H33: =IF(L32=0,0,IF(L32="partida",IF(E33=0,0,RAND()),IF(E33>1,0,RAND()))) -> 0 | I33: 0 | J33: =IF(C33=$C$6,0,+J32+G33) -> 0 | K33: =IF(D33<K32,K32,IF(I33=0,0,D33+I33)) -> 0 | L33: =IF(C33<$C$6,IF(C33=$C$6,"partida",IF(K33=0,"chegada",IF(J33<K33,"chegada","partida"))),IF(E33=0,0,IF(C33=$C$6,"partida",IF(K33=0,"chegada",IF(J33<K33,"chegada","partida"))))) -> 0 | M33: =IF(E33<2,0,(E33-1)*(D34-D33)) -> 0
E36: Medidas de Performance | R36: Medidas de Performance
C38: Tempo Total de Simulação | G38: =MAX(D9:D33) -> 92.78826753 | H38: minutos | P38: Tempo Total de Simulação | U38: =MAX(U9:U33) -> 92.78826753 | V38: minutos
C39: Tempo de Actividade (Serviço) | G39: =SUM(I9:I33) -> 63.7 | H39: " | P39: Tempo Total de Actividade (Serviço) | U39: =SUM(S9:S33) -> 63.7 | V39: "
C40: Tempo Total na Fila | G40: =SUM(M9:M33) -> 32.36939399 | H40: " | P40: Tempo Total na Fila | U40: =SUM(V9:V9:V33) -> 32.36939399 | V40: "
C41: Tempo no Sistema | G41: =+G40+G39 -> 96.06939399 | H41: " | P41: Tempo Total no Sistema | U41: =SUM(W9:W10:W33) -> 96.06939399 | V41: "
C42: Tempo de Inactividade | G42: =G38-G39 -> 29.08826753 | H42: " | P42: Tempo Total de Inactividade | U42: =+U38-U39 -> 29.08826753 | V42: "
C44: Comprimento médio da Fila | G44: =+G40/MAX(D9:D33) -> 0.3488522294 | H44: clientes | P44: Compriento médio fila | U44: =+U40/U38 -> 0.3488522294 | V44: clientes
C45: Nº médio clientes no Sistema | G45: =+G41/MAX(D9:D33) -> 1.035361437 | H45: " | P45: Nº médio Clientes no Sistema | U45: =+U41/U38 -> 1.035361437 | V45: "
C46: Tempo médio na Fila | G46: =+G40/MAX(C9:C33) -> 6.473878797 | H46: " | P46: Tempo médio na fila | U46: =+U40/MAX(Q9:Q33) -> 6.473878797 | V46: minutos
C47: Tempo médio no Sistema | G47: =+G41/MAX(C9:C33) -> 19.2138788 | H47: " | P47: Tempo médio no Sistema | U47: =+U41/MAX(Q9:Q33) -> 19.2138788 | V47: "
C49: % Utilização média do Serviço | G49: =+G39/G38*100 -> 68.65092074 | H49: % | P49: %Utilização do Sistema | U49: =+U39/U38*100 -> 68.65092074 | V49: %
C50: % Inactividade do Sistema | G50: =+G42/G38*100 -> 31.34907926 | H50: % | P50: % Inactividade do Sistema | U50: =+U42/U38*100 -> 31.34907926 | V50: %

Sheet Sheet2
B1: Exemplo 5 - Simulação
K3: Unidade: minuto | U3: Medidas de Performance : 100 Runs
D4: média | E4: min | G4: max | H4: NPA | I4: NPA | J4: Nº Clientes | K4: Intervalo | L4: Tempo | M4: Tempo | N4: Tempo | O4: Tempo | P4: Tempo | S4: M1 | T4: M2 | U4: M3 | V4: M4 | W4: M5 | X4: M6 | Y4: M7 | Z4: M8 | AA4: M9 | AB4: M10 | AC4: M11 | AD4: M12 | AE4: M13
H5: Cheg | I5: Serv | K5: Chegadas | L5: Serviço | M5: Chegada | N5: Partida | O5: Fila | P5: Sistema | S5: =+G10 -> 1252.457849 | T5: =+G11 -> 2013.120791 | U5: =+G12 -> 3265.57864 | V5: =+G13 -> 422.3376379 | W5: =+G14 -> 1674.795487 | X5: =+G15 -> 100 | Y5: =+G17 -> 1.202009921 | Z5: =+G18 -> 1.949837258 | AA5: =+G19 -> 20.13120791 | AB5: =+G20 -> 32.6557864 | AC5: =+G21 -> 12.52457849 | AD5: =+G23 -> 25.2172663 | AE5: =+G24 -> 74.7827337
B6: Exponencial | D6: 15 | H6: =RAND() -> 0.2981039516 | I6: =RAND() -> 0.21574161 | J6: 1 | K6: =-$D$6*LN(1-H6) -> 5.309549476 | L6: =+$E$7+I6*($G$7-$E$7) -> 11.07870805 | M6: 0 | N6: =+M6+L6 -> 11.07870805 | O6: =+N6-M6-L6 -> 0 | P6: =+N6-M6 -> 11.07870805 | R6: 1 | S6: 1252.320165 | T6: 6805.890914 | U6: 8058.21108 | V6: 115.7693589 | W6: 1368.089524 | X6: 100 | Y6: 4.974740902 | Z6: 5.890119715 | AA6: 68.05890914 | AB6: 80.5821108 | AC6: 12.52320165 | AD6: 8.462118662 | AE6: 91.53788134
B7: Uniforme | E7: 10 | G7: 15 | H7: =RAND() -> 0.5014609362 | I7: 0.5409485688 | J7: =+J6+1 -> 2 | K7: 10.44109995 | L7: =+$E$7+I7*($G$7-$E$7) -> 12.70474284 | M7: =+M6+K6 -> 5.309549476 | N7: =MAX(M7,N6)+L7 -> 23.78345089 | O7: =+N7-M7-L7 -> 5.769158573 | P7: =+N7-M7 -> 18.47390142 | R7: =+R6+1 -> 2 | S7: 1246.213256 | T7: 3573.077133 | U7: 4819.290388 | V7: 124.6198858 | W7: 1370.833141 | X7: 100 | Y7: 2.606500401 | Z7: 3.515592265 | AA7: 35.73077133 | AB7: 48.19290388 | AC7: 12.46213256 | AD7: 9.090813613 | AE7: 90.90918639
H8: 0.1204681093 | I8: 0.3730810569 | J8: =+J7+1 -> 3 | K8: 1.925481832 | L8: 11.86540528 | M8: =+M7+K7 -> 15.75064943 | N8: =MAX(M8,N7)+L8 -> 35.64885618 | O8: 8.032801468 | P8: 19.89820675 | R8: =+R7+1 -> 3 | S8: 1224.959343 | T8: 4482.610739 | U8: 5707.570082 | V8: 95.54243955 | W8: 1320.501782 | X8: 100 | Y8: 3.3946268 | Z8: 4.322273668 | AA8: 44.82610739 | AB8: 57.07570082 | AC8: 12.24959343 | AD8: 7.235313185 | AE8: 92.76468682
E9: Média | G9: Run 0 | H9: 0.101910587 | I9: 0.1555670647 | J9: 4 | K9: 1.612284698 | L9: 10.77783532 | M9: 17.67613126 | N9: 46.4266915 | O9: 17.97272492 | P9: 28.75056024 | R9: 4 | S9: 1244.25406 | T9: 2004.688411 | U9: 3248.942471 | V9: 414.8585263 | W9: 1659.112587 | X9: 100 | Y9: 1.208289556 | Z9: 1.958241109 | AA9: 20.04688411 | AB9: 32.48942471 | AC9: 12.4425406 | AD9: 25.00484474 | AE9: 74.99515526
B10: Tempo Total de Actividade (Serviço) | D10: M1 | E10: =AVERAGE(S5:S105) -> 1252.175003 | G10: =SUM(L6:L5055) -> 1252.457849 | H10: 0.3565285186 | I10: 0.8864945121 | J10: 5 | K10: 6.613163563 | L10: 14.43247256 | M10: 19.28841596 | N10: 60.85916406 | O10: 27.13827555 | P10: 41.57074811 | R10: 5 | S10: 1251.516467 | T10: 3099.122089 | U10: 4350.638556 | V10: 184.9591934 | W10: 1436.47566 | X10: 100 | Y10: 2.157448383 | Z10: 3.028689366 | AA10: 30.99122089 | AB10: 43.50638556 | AC10: 12.51516467 | AD10: 12.87590166 | AE10: 87.12409834
B11: Tempo Total na Fila | D11: M2 | E11: =AVERAGE(T5:T105) -> 2639.759437 | G11: =SUM(O6:O5055) -> 2013.120791 | H11: 0.1343830759 | I11: 0.5666180414 | J11: 6 | K11: 2.164692287 | L11: 12.83309021 | M11: 25.90157952 | N11: 73.69225427 | O11: 34.95758454 | P11: 47.79067475 | R11: 6 | S11: 1258.984074 | T11: 3751.4008 | U11: 5010.384875 | V11: 163.262339 | W11: 1422.246413 | X11: 100 | Y11: 2.637658823 | Z11: 3.522866943 | AA11: 37.514008 | AB11: 50.10384875 | AC11: 12.58984074 | AD11: 11.47918796 | AE11: 88.52081204
B12: Tempo Total no Sistema | D12: M3 | E12: =AVERAGE(U5:U105) -> 3891.93444 | G12: =SUM(P6:P5055) -> 3265.57864 | H12: 0.9959608363 | I12: 0.2950327581 | J12: 7 | K12: 82.67576432 | L12: 11.47516379 | M12: 28.06627181 | N12: 85.16741806 | O12: 45.62598246 | P12: 57.10114625 | R12: 7 | S12: 1241.853986 | T12: 3757.133878 | U12: 4998.987864 | V12: 474.2807642 | W12: 1716.134751 | X12: 100 | Y12: 2.18930004 | Z12: 2.91293435 | AA12: 37.57133878 | AB12: 49.98987864 | AC12: 12.41853986 | AD12: 27.63656898 | AE12: 72.36343102
B13: Tempo Total de Inactividade | D13: M4 | E13: =AVERAGE(V5:V105) -> 268.8060976 | G13: =+G14-G10 -> 422.3376379 | H13: 0.2170683082 | I13: 0.7806717455 | J13: 8 | K13: 3.670647389 | L13: 13.90335873 | M13: 110.7420361 | N13: 124.6453949 | O13: 0 | P13: 13.90335873 | R13: 8 | S13: 1258.166466 | T13: 1407.154182 | U13: 2665.320648 | V13: 407.1103325 | W13: 1665.276798 | X13: 100 | Y13: 0.84499717 | Z13: 1.600527102 | AA13: 14.07154182 | AB13: 26.65320648 | AC13: 12.58166466 | AD13: 24.44700682 | AE13: 75.55299318
B14: Tempo Total de Simulação | D14: M5 | E14: =AVERAGE(W5:W105) -> 1520.9811 | G14: =+MAX(N6:N5055) -> 1674.795487 | H14: 0.9110048197 | I14: 0.9472944708 | J14: 9 | K14: 36.28759596 | L14: 14.73647235 | M14: 114.4126835 | N14: 139.3818672 | O14: 10.23271134 | P14: 24.96918369 | R14: 9 | S14: 1252.613848 | T14: 2255.388446 | U14: 3508.002295 | V14: 192.5739903 | W14: 1445.187839 | X14: 100 | Y14: 1.560619586 | Z14: 2.42736771 | AA14: 22.55388446 | AB14: 35.08002295 | AC14: 12.52613848 | AD14: 13.32518757 | AE14: 86.67481243
B15: Nº Clientes | D15: M6 | E15: =AVERAGE(X5:X105) -> 100 | G15: =MAX(J6:J105) -> 100 | H15: 0.770186711 | I15: 0.2323153136 | J15: 10 | K15: 22.0573213 | L15: 11.16157657 | M15: 150.7002795 | N15: 161.861856 | O15: 0 | P15: 11.16157657 | R15: 10 | S15: 1237.32863 | T15: 2874.341553 | U15: 4111.670183 | V15: 350.0296343 | W15: 1587.358264 | X15: 100 | Y15: 1.810770522 | Z15: 2.590259726 | AA15: 28.74341553 | AB15: 41.11670183 | AC15: 12.3732863 | AD15: 22.05107959 | AE15: 77.94892041
H16: 0.6962586665 | I16: 0.2764317097 | J16: 11 | K16: 17.87368225 | L16: 11.38215855 | M16: 172.7576008 | N16: 184.1397593 | O16: 0 | P16: 11.38215855 | R16: 11 | S16: 1228.279438 | T16: 2704.99754 | U16: 3933.276978 | V16: 184.4411764 | W16: 1412.720615 | X16: 100 | Y16: 1.914743447 | Z16: 2.784186015 | AA16: 27.0499754 | AB16: 39.33276978 | AC16: 12.28279438 | AD16: 13.05574326 | AE16: 86.94425674
B17: Comprimento médio fila | D17: M7 | E17: =AVERAGE(Y5:Y105) -> 1.796411454 | G17: =+G11/G14 -> 1.202009921 | H17: 0.8836505711 | I17: 0.7869796948 | J17: 12 | K17: 32.26735947 | L17: 13.93489847 | M17: 190.631283 | N17: 204.5661815 | O17: 0 | P17: 13.93489847 | R17: 12 | S17: 1212.82305 | T17: 1528.570573 | U17: 2741.393623 | V17: 209.4751454 | W17: 1422.298195 | X17: 100 | Y17: 1.074718775 | Z17: 1.92743943 | AA17: 15.28570573 | AB17: 27.41393623 | AC17: 12.1282305 | AD17: 14.72793442 | AE17: 85.27206558
B18: Nº médio Cl. Sistema | D18: M8 | E18: =AVERAGE(Z5:Z105) -> 2.62555755 | G18: =+G12/G14 -> 1.949837258 | H18: 0.1745439461 | I18: 0.5963656076 | J18: 13 | K18: 2.877288792 | L18: 12.98182804 | M18: 222.8986425 | N18: 235.8804705 | O18: 0 | P18: 12.98182804 | R18: 13 | S18: 1238.971643 | T18: 1328.723826 | U18: 2567.695469 | V18: 261.9074594 | W18: 1500.879102 | X18: 100 | Y18: 0.8852970399 | Z18: 1.710794337 | AA18: 13.28723826 | AB18: 25.67695469 | AC18: 12.38971643 | AD18: 17.45027025 | AE18: 82.54972975
B19: Tempo médio na fila | D19: M9 | E19: =AVERAGE(AA5:AA105) -> 26.39759437 | G19: =+G11/G15 -> 20.13120791 | H19: 0.2940777725 | I19: 0.2851373779 | J19: 14 | K19: 5.223753104 | L19: 11.42568689 | M19: 225.7759313 | N19: 247.3061574 | O19: 10.10453925 | P19: 21.53022613 | R19: 14 | S19: 1252.891287 | T19: 1287.737186 | U19: 2540.628473 | V19: 387.6678912 | W19: 1640.559178 | X19: 100 | Y19: 0.7849379671 | Z19: 1.548635677 | AA19: 12.87737186 | AB19: 25.40628473 | AC19: 12.52891287 | AD19: 23.63022903 | AE19: 76.36977097
B20: Tempo médio no Sistema | D20: M10 | E20: =AVERAGE(AB5:AB105) -> 38.9193444 | G20: =+G12/G15 -> 32.6557864 | H20: 0.04282736948 | I20: 0.8565887431 | J20: 15 | K20: 0.6565727495 | L20: 14.28294372 | M20: 230.9996844 | N20: 261.5891011 | O20: 16.30647303 | P20: 30.58941675 | R20: 15 | S20: 1261.703761 | T20: 3049.767408 | U20: 4311.471169 | V20: 168.2112671 | W20: 1429.915028 | X20: 100 | Y20: 2.132831217 | Z20: 3.01519397 | AA20: 30.49767408 | AB20: 43.11471169 | AC20: 12.61703761 | AD20: 11.76372469 | AE20: 88.23627531
B21: Tempo médio no Serviço | D21: M11 | E21: =AVERAGE(AC5:AC105) -> 12.52175003 | G21: =+G10/G15 -> 12.52457849 | H21: 0.2756467448 | I21: 0.06799880571 | J21: 16 | K21: 4.837141261 | L21: 10.33999403 | M21: 231.6562571 | N21: 271.9290952 | O21: 29.932844 | P21: 40.27283803 | R21: 16 | S21: 1262.793029 | T21: 898.5262372 | U21: 2161.319266 | V21: 497.9796422 | W21: 1760.772671 | X21: 100 | Y21: 0.5103022394 | Z21: 1.227483423 | AA21: 8.985262372 | AB21: 21.61319266 | AC21: 12.62793029 | AD21: 28.28188161 | AE21: 71.71811839
H22: 0.7756722962 | I22: 0.8911834295 | J22: 17 | K22: 22.41970999 | L22: 14.45591715 | M22: 236.4933984 | N22: 286.3850123 | O22: 35.43569676 | P22: 49.89161391 | R22: 17 | S22: 1253.291808 | T22: 3256.557932 | U22: 4509.84974 | V22: 236.4229313 | W22: 1489.71474 | X22: 100 | Y22: 2.186027865 | Z22: 3.027324373 | AA22: 32.56557932 | AB22: 45.0984974 | AC22: 12.53291808 | AD22: 15.8703492 | AE22: 84.1296508
B23: % Inactividade do Sistema | D23: M12 | E23: =AVERAGE(AD5:AD105) -> 17.08539039 | G23: =+G13/G14*100 -> 25.2172663 | H23: 0.9583717496 | I23: 0.2665768291 | J23: 18 | K23: 47.68464371 | L23: 11.33288415 | M23: 258.9131084 | N23: 297.7178965 | O23: 27.47190392 | P23: 38.80478806 | R23: 18 | S23: 1275.42896 | T23: 3129.087733 | U23: 4404.516692 | V23: 270.3762868 | W23: 1545.805246 | X23: 100 | Y23: 2.024244477 | Z23: 2.849334806 | AA23: 31.29087733 | AB23: 44.04516692 | AC23: 12.7542896 | AD23: 17.49096708 | AE23: 82.50903292
B24: %Utilização do Sistema | D24: M13 | E24: =AVERAGE(AE5:AE105) -> 82.91460961 | G24: =+G10/G14*100 -> 74.7827337 | H24: 0.6944386543 | I24: 0.732357413 | J24: 19 | K24: 17.78407074 | L24: 13.66178707 | M24: 306.5977521 | N24: 320.2595392 | O24: 0 | P24: 13.66178707 | R24: 19 | S24: 1254.171984 | T24: 3445.903574 | U24: 4700.075558 | V24: 469.954324 | W24: 1724.126308 | X24: 100 | Y24: 1.998637546 | Z24: 2.726062201 | AA24: 34.45903574 | AB24: 47.00075558 | AC24: 12.54171984 | AD24: 27.25753454 | AE24: 72.74246546
H25: 0.9875924007 | I25: 0.5064660986 | J25: 20 | K25: 65.84169216 | L25: 12.53233049 | M25: 324.3818228 | N25: 336.9141533 | O25: 0 | P25: 12.53233049 | R25: 20 | S25: 1263.615174 | T25: 1029.455467 | U25: 2293.070641 | V25: 583.8960632 | W25: 1847.511238 | X25: 100 | Y25: 0.5572120189 | Z25: 1.241167358 | AA25: 10.29455467 | AB25: 22.93070641 | AC25: 12.63615174 | AD25: 31.60446612 | AE25: 68.39553388
H26: 0.3561935693 | I26: 0.7179998891 | J26: 21 | K26: 6.605357572 | L26: 13.58999945 | M26: 390.223515 | N26: 403.8135144 | O26: -2.131628207e-14 | P26: 13.58999945 | R26: 21 | S26: 1247.267807 | T26: 2481.120332 | U26: 3728.388139 | V26: 212.0646436 | W26: 1459.332451 | X26: 100 | Y26: 1.700174851 | Z26: 2.554858653 | AA26: 24.81120332 | AB26: 37.28388139 | AC26: 12.47267807 | AD26: 14.53161982 | AE26: 85.46838018
H27: 0.5038816619 | I27: 0.9187311562 | J27: 22 | K27: 10.51411194 | L27: 14.59365578 | M27: 396.8288726 | N27: 418.4071702 | O27: 6.984641874 | P27: 21.57829765 | R27: 22 | S27: 1276.243192 | T27: 1142.907275 | U27: 2419.150467 | V27: 264.8581109 | W27: 1541.101303 | X27: 100 | Y27: 0.7416172271 | Z27: 1.569754345 | AA27: 11.42907275 | AB27: 24.19150467 | AC27: 12.76243192 | AD27: 17.18628817 | AE27: 82.81371183
B28: Nº de Runs = 101 | H28: 0.6151064508 | I28: 0.9326281725 | J28: 23 | K28: 14.32182718 | L28: 14.66314086 | M28: 407.3429845 | N28: 433.0703111 | O28: 11.06418572 | P28: 25.72732658 | R28: 23 | S28: 1250.281211 | T28: 1070.414753 | U28: 2320.695963 | V28: 371.6325847 | W28: 1621.913796 | X28: 100 | Y28: 0.6599701881 | Z28: 1.430838044 | AA28: 10.70414753 | AB28: 23.20695963 | AC28: 12.50281211 | AD28: 22.91321436 | AE28: 77.08678564
H29: 0.27439027 | I29: 0.4007348801 | J29: 24 | K29: 4.811144559 | L29: 12.0036744 | M29: 421.6648117 | N29: 445.0739855 | O29: 11.4054994 | P29: 23.4091738 | R29: 24 | S29: 1244.494427 | T29: 2370.235762 | U29: 3614.730189 | V29: 284.5210636 | W29: 1529.015491 | X29: 100 | Y29: 1.55017119 | Z29: 2.364089973 | AA29: 23.70235762 | AB29: 36.14730189 | AC29: 12.44494427 | AD29: 18.60812172 | AE29: 81.39187828
H30: 0.8106340341 | I30: 0.3737854642 | J30: 25 | K30: 24.96110713 | L30: 11.86892732 | M30: 426.4759562 | N30: 456.9429128 | O30: 18.59802924 | P30: 30.46695657 | R30: 25 | S30: 1245.004053 | T30: 2059.139952 | U30: 3304.144005 | V30: 370.2993425 | W30: 1615.303395 | X30: 100 | Y30: 1.274769779 | Z30: 2.045525327 | AA30: 20.59139952 | AB30: 33.04144005 | AC30: 12.45004053 | AD30: 22.92444525 | AE30: 77.07555475
H31: 0.5458760852 | I31: 0.02774647566 | J31: 26 | K31: 11.84077767 | L31: 10.13873238 | M31: 451.4370634 | N31: 467.0816452 | O31: 5.505849434 | P31: 15.64458181 | R31: 26 | S31: 1251.218638 | T31: 2407.388077 | U31: 3658.606715 | V31: 277.7794406 | W31: 1528.998079 | X31: 100 | Y31: 1.574487313 | Z31: 2.392813154 | AA31: 24.07388077 | AB31: 36.58606715 | AC31: 12.51218638 | AD31: 18.16741594 | AE31: 81.83258406
H32: 0.1502493067 | I32: 0.03231712745 | J32: 27 | K32: 2.442184117 | L32: 10.16158564 | M32: 463.2778411 | N32: 477.2432308 | O32: 3.80380414 | P32: 13.96538978 | R32: 27 | S32: 1251.711642 | T32: 4465.215482 | U32: 5716.927123 | V32: 109.2603049 | W32: 1360.971947 | X32: 100 | Y32: 3.280901927 | Z32: 4.200620841 | AA32: 44.65215482 | AB32: 57.16927123 | AC32: 12.51711642 | AD32: 8.028108526 | AE32: 91.97189147
H33: 0.434419895 | I33: 0.3579595586 | J33: 28 | K33: 8.5485501 | L33: 11.78979779 | M33: 465.7200252 | N33: 489.0330286 | O33: 11.52320566 | P33: 23.31300345 | R33: 28 | S33: 1240.382937 | T33: 1445.821225 | U33: 2686.204162 | V33: 342.2149716 | W33: 1582.597909 | X33: 100 | Y33: 0.9135745832 | Z33: 1.697338375 | AA33: 14.45821225 | AB33: 26.86204162 | AC33: 12.40382937 | AD33: 21.62362086 | AE33: 78.37637914
H34: 0.4110201907 | I34: 0.8696056176 | J34: 29 | K34: 7.940450633 | L34: 14.34802809 | M34: 474.2685753 | N34: 503.3810567 | O34: 14.76445335 | P34: 29.11248144 | R34: 29 | S34: 1263.056196 | T34: 6248.342746 | U34: 7511.398942 | V34: 39.74845438 | W34: 1302.804651 | X34: 100 | Y34: 4.796070342 | Z34: 5.76556043 | AA34: 62.48342746 | AB34: 75.11398942 | AC34: 12.63056196 | AD34: 3.050991133 | AE34: 96.94900887
H35: =RAND() -> 0.4854678361 | I35: =RAND() -> 0.3392102261 | J35: 30 | K35: 9.967458161 | L35: 11.69605113 | M35: 482.2090259 | N35: 515.0771078 | O35: 21.17203081 | P35: 32.86808194 | R35: 30 | S35: 1251.869414 | T35: 1792.897304 | U35: 3044.766717 | V35: 359.3448555 | W35: 1611.214269 | X35: 100 | Y35: 1.11276156 | Z35: 1.889734206 | AA35: 17.92897304 | AB35: 30.44766717 | AC35: 12.51869414 | AD35: 22.30273542 | AE35: 77.69726458
H36: =RAND() -> 0.9184057365 | I36: 0.5489085732 | J36: =+J35+1 -> 31 | K36: 37.5899448 | L36: =+$E$7+I36*($G$7-$E$7) -> 12.74454287 | M36: =+M35+K35 -> 492.1764841 | N36: =MAX(M36,N35)+L36 -> 527.8216507 | O36: =+N36-M36-L36 -> 22.90062378 | P36: =+N36-M36 -> 35.64516664 | R36: 31 | S36: 1264.308546 | T36: 3146.521394 | U36: 4410.82994 | V36: 123.6561921 | W36: 1387.964738 | X36: 100 | Y36: 2.267003843 | Z36: 3.177912104 | AA36: 31.46521394 | AB36: 44.1082994 | AC36: 12.64308546 | AD36: 8.909173894 | AE36: 91.09082611
H37: 0.88690419 | I37: 0.8001165009 | J37: 32 | K37: 32.69279915 | L37: 14.0005825 | M37: 529.7664289 | N37: 543.7670114 | O37: -1.776356839e-14 | P37: 14.0005825 | R37: 32 | S37: 1284.103107 | T37: 3040.863502 | U37: 4324.966609 | V37: 132.3025691 | W37: 1416.405676 | X37: 100 | Y37: 2.146887401 | Z37: 3.053480144 | AA37: 30.40863502 | AB37: 43.24966609 | AC37: 12.84103107 | AD37: 9.340725706 | AE37: 90.65927429
H38: 0.8097248435 | I38: 0.102894123 | J38: 33 | K38: =-$D$6*LN(1-H38) -> 24.88926093 | L38: 10.51447061 | M38: 562.459228 | N38: 572.9736986 | O38: 0 | P38: 10.51447061 | R38: 33 | S38: 1218.982609 | T38: 1491.849664 | U38: 2710.832274 | V38: 277.697909 | W38: 1496.680518 | X38: 100 | Y38: 0.9967722879 | Z38: 1.811229745 | AA38: 14.91849664 | AB38: 27.10832274 | AC38: 12.18982609 | AD38: 18.55425427 | AE38: 81.44574573
H39: 0.1184114696 | I39: 0.7269027547 | J39: 34 | K39: 1.89044776 | L39: 13.63451377 | M39: 587.3484889 | N39: 600.9830027 | O39: 3.375077995e-14 | P39: 13.63451377 | R39: 34 | S39: 1239.940234 | T39: 3415.003397 | U39: 4654.943631 | V39: 56.40779143 | W39: 1296.348026 | X39: 100 | Y39: 2.634326068 | Z39: 3.590813222 | AA39: 34.15003397 | AB39: 46.54943631 | AC39: 12.39940234 | AD39: 4.351284556 | AE39: 95.64871544
H40: 0.01035828144 | I40: 0.6122020709 | J40: 35 | K40: 0.1561845269 | L40: 13.06101035 | M40: 589.2389367 | N40: 614.0440131 | O40: 11.74406601 | P40: 24.80507637 | R40: 35 | S40: 1237.700216 | T40: 4441.763906 | U40: 5679.464122 | V40: 195.3000275 | W40: 1433.000243 | X40: 100 | Y40: 3.099625367 | Z40: 3.963337862 | AA40: 44.41763906 | AB40: 56.79464122 | AC40: 12.37700216 | AD40: 13.62875048 | AE40: 86.37124952
H41: 0.8053962495 | I41: 0.1668328391 | J41: 36 | K41: 24.55184755 | L41: 10.8341642 | M41: 589.3951212 | N41: 624.8781773 | O41: 24.64889184 | P41: 35.48305604 | R41: 36 | S41: 1260.010652 | T41: 1119.930861 | U41: 2379.941512 | V41: 281.470946 | W41: 1541.481598 | X41: 100 | Y41: 0.7265288555 | Z41: 1.543931187 | AA41: 11.19930861 | AB41: 23.79941512 | AC41: 12.60010652 | AD41: 18.25976687 | AE41: 81.74023313
H42: 0.3714479125 | I42: 0.3211508039 | J42: 37 | K42: 6.965045678 | L42: 11.60575402 | M42: 613.9469688 | N42: 636.4839313 | O42: 10.93120849 | P42: 22.53696251 | R42: 37 | S42: 1256.421631 | T42: 1542.012876 | U42: 2798.434507 | V42: 471.5713224 | W42: 1727.992953 | X42: 100 | Y42: 0.8923722012 | Z42: 1.619471018 | AA42: 15.42012876 | AB42: 27.98434507 | AC42: 12.56421631 | AD42: 27.29011837 | AE42: 72.70988163
H43: 0.2260772664 | I43: 0.4845378265 | J43: 38 | K43: 3.844248566 | L43: 12.42268913 | M43: 620.9120145 | N43: 648.9066204 | O43: 15.57191683 | P43: 27.99460596 | R43: 38 | S43: 1259.470317 | T43: 1929.875537 | U43: 3189.345855 | V43: 316.7511163 | W43: 1576.221434 | X43: 100 | Y43: 1.224368287 | Z43: 2.023412311 | AA43: 19.29875537 | AB43: 31.89345855 | AC43: 12.59470317 | AD43: 20.09559758 | AE43: 79.90440242
H44: 0.6369031894 | I44: 0.3709682847 | J44: 39 | K44: 15.19628677 | L44: 11.85484142 | M44: 624.756263 | N44: 660.7614618 | O44: 24.1503574 | P44: 36.00519882 | R44: 39 | S44: 1253.983284 | T44: 1459.667305 | U44: 2713.65059 | V44: 522.6590568 | W44: 1776.642341 | X44: 100 | Y44: 0.8215875933 | Z44: 1.527403984 | AA44: 14.59667305 | AB44: 27.1365059 | AC44: 12.53983284 | AD44: 29.41836096 | AE44: 70.58163904
H45: 0.2743771184 | I45: 0.5749191928 | J45: 40 | K45: 4.810872688 | L45: 12.87459596 | M45: 639.9525498 | N45: 673.6360578 | O45: 20.80891205 | P45: 33.68350802 | R45: 40 | S45: 1238.427017 | T45: 2773.229614 | U45: 4011.656631 | V45: 246.5201649 | W45: 1484.947182 | X45: 100 | Y45: 1.867561115 | Z45: 2.701548365 | AA45: 27.73229614 | AB45: 40.11656631 | AC45: 12.38427017 | AD45: 16.60127498 | AE45: 83.39872502
H46: 0.4454259052 | I46: 0.652922401 | J46: 41 | K46: 8.843322849 | L46: 13.264612 | M46: 644.7634225 | N46: 686.9006698 | O46: 28.87263533 | P46: 42.13724734 | R46: 41 | S46: 1257.2211 | T46: 5649.20926 | U46: 6906.43036 | V46: 94.0956525 | W46: 1351.316753 | X46: 100 | Y46: 4.180521886 | Z46: 5.110889321 | AA46: 56.4920926 | AB46: 69.0643036 | AC46: 12.572211 | AD46: 6.963256566 | AE46: 93.03674343
H47: 0.4912893922 | I47: 0.03996580559 | J47: 42 | K47: 10.13813962 | L47: 10.19982903 | M47: 653.6067453 | N47: 697.1004988 | O47: 33.29392449 | P47: 43.49375351 | R47: 42 | S47: 1267.629531 | T47: 2434.65172 | U47: 3702.281252 | V47: 198.7383821 | W47: 1466.367913 | X47: 100 | Y47: 1.66032801 | Z47: 2.524796961 | AA47: 24.3465172 | AB47: 37.02281252 | AC47: 12.67629531 | AD47: 13.55310494 | AE47: 86.44689506
H48: 0.05886510708 | I48: 0.3668135249 | J48: 43 | K48: 0.910031986 | L48: 11.83406762 | M48: 663.7448849 | N48: 708.9345665 | O48: 33.3556139 | P48: 45.18968152 | R48: 43 | S48: 1269.048306 | T48: 5117.191919 | U48: 6386.240225 | V48: 47.14525132 | W48: 1316.193557 | X48: 100 | Y48: 3.88787188 | Z48: 4.852052489 | AA48: 51.17191919 | AB48: 63.86240225 | AC48: 12.69048306 | AD48: 3.581939075 | AE48: 96.41806093
H49: 0.263230713 | I49: 0.7805233653 | J49: 44 | K49: 4.582207188 | L49: 13.90261683 | M49: 664.6549169 | N49: 722.8371833 | O49: 44.27964954 | P49: 58.18226636 | R49: 44 | S49: 1236.202121 | T49: 2198.111467 | U49: 3434.313589 | V49: 232.4971748 | W49: 1468.699296 | X49: 100 | Y49: 1.496638197 | Z49: 2.338336784 | AA49: 21.98111467 | AB49: 34.34313589 | AC49: 12.36202121 | AD49: 15.83014136 | AE49: 84.16985864
H50: =RAND() -> 0.1515579563 | I50: =RAND() -> 0.5278420008 | J50: 45 | K50: 2.465302515 | L50: 12.63921 | M50: 669.2371241 | N50: 735.4763933 | O50: 53.60005917 | P50: 66.23926918 | R50: 45 | S50: 1255.004441 | T50: 2096.048723 | U50: 3351.053164 | V50: 331.2499262 | W50: 1586.254367 | X50: 100 | Y50: 1.321382476 | Z50: 2.112557251 | AA50: 20.96048723 | AB50: 33.51053164 | AC50: 12.55004441 | AD50: 20.88252257 | AE50: 79.11747743
H51: 0.5192033355 | I51: 0.4404013911 | J51: =+J50+1 -> 46 | K51: 10.9846625 | L51: =+$E$7+I51*($G$7-$E$7) -> 12.20200696 | M51: =+M50+K50 -> 671.7024266 | N51: =MAX(M51,N50)+L51 -> 747.6784003 | O51: =+N51-M51-L51 -> 63.77396666 | P51: =+N51-M51 -> 75.97597362 | R51: 46 | S51: 1249.943668 | T51: 1151.069027 | U51: 2401.012696 | V51: 440.4533877 | W51: 1690.397056 | X51: 100 | Y51: 0.6809459488 | Z51: 1.42038386 | AA51: 11.51069027 | AB51: 24.01012696 | AC51: 12.49943668 | AD51: 26.05620887 | AE51: 73.94379113
H52: =RAND() -> 0.8074247322 | I52: 0.3304466689 | J52: =+J51+1 -> 47 | K52: 24.709023 | L52: =+$E$7+I52*($G$7-$E$7) -> 11.65223334 | M52: =+M51+K51 -> 682.6870891 | N52: =MAX(M52,N51)+L52 -> 759.3306336 | O52: =+N52-M52-L52 -> 64.99131112 | P52: =+N52-M52 -> 76.64354446 | R52: 47 | S52: 1283.509338 | T52: 3657.998899 | U52: 4941.508237 | V52: 163.062228 | W52: 1446.571566 | X52: 100 | Y52: 2.528736901 | Z52: 3.416013665 | AA52: 36.57998899 | AB52: 49.41508237 | AC52: 12.83509338 | AD52: 11.2723236 | AE52: 88.7276764
H53: 0.06352773492 | I53: 0.631942024 | J53: =+J52+1 -> 48 | K53: 0.9845305957 | L53: =+$E$7+I53*($G$7-$E$7) -> 13.15971012 | M53: =+M52+K52 -> 707.3961121 | N53: =MAX(M53,N52)+L53 -> 772.4903437 | O53: =+N53-M53-L53 -> 51.93452146 | P53: =+N53-M53 -> 65.09423158 | R53: 48 | S53: 1234.869654 | T53: 3284.164354 | U53: 4519.034008 | V53: 189.3740078 | W53: 1424.243662 | X53: 100 | Y53: 2.305900627 | Z53: 3.172936014 | AA53: 32.84164354 | AB53: 45.19034008 | AC53: 12.34869654 | AD53: 13.29646133 | AE53: 86.70353867
H54: 0.3028570338 | I54: 0.0004599645612 | J54: =+J53+1 -> 49 | K54: 5.411471591 | L54: =+$E$7+I54*($G$7-$E$7) -> 10.00229982 | M54: =+M53+K53 -> 708.3806427 | N54: =MAX(M54,N53)+L54 -> 782.4926435 | O54: =+N54-M54-L54 -> 64.10970099 | P54: =+N54-M54 -> 74.11200081 | R54: 49 | S54: 1251.930332 | T54: 3551.373792 | U54: 4803.304124 | V54: 399.3576308 | W54: 1651.287963 | X54: 100 | Y54: 2.150668976 | Z54: 2.908822829 | AA54: 35.51373792 | AB54: 48.03304124 | AC54: 12.51930332 | AD54: 24.18461466 | AE54: 75.81538534
H55: 0.08864422553 | I55: 0.4009620305 | J55: =+J54+1 -> 50 | K55: 1.392328892 | L55: =+$E$7+I55*($G$7-$E$7) -> 12.00481015 | M55: =+M54+K54 -> 713.7921143 | N55: =MAX(M55,N54)+L55 -> 794.4974537 | O55: =+N55-M55-L55 -> 68.70052922 | P55: =+N55-M55 -> 80.70533937 | R55: 50 | S55: 1257.729287 | T55: 3475.748133 | U55: 4733.477419 | V55: 206.2005359 | W55: 1463.929823 | X55: 100 | Y55: 2.37425871 | Z55: 3.233404598 | AA55: 34.75748133 | AB55: 47.33477419 | AC55: 12.57729287 | AD55: 14.08541125 | AE55: 85.91458875
H56: =RAND() -> 0.1816013396 | I56: 0.4293990164 | J56: =+J55+1 -> 51 | K56: 3.006085517 | L56: =+$E$7+I56*($G$7-$E$7) -> 12.14699508 | M56: =+M55+K55 -> 715.1844432 | N56: =MAX(M56,N55)+L56 -> 806.6444488 | O56: =+N56-M56-L56 -> 79.31301048 | P56: =+N56-M56 -> 91.46000556 | R56: 51 | S56: 1226.800923 | T56: 3676.247384 | U56: 4903.048307 | V56: 107.0263104 | W56: 1333.827233 | X56: 100 | Y56: 2.756164585 | Z56: 3.675924576 | AA56: 36.76247384 | AB56: 49.03048307 | AC56: 12.26800923 | AD56: 8.024000985 | AE56: 91.97599901
H57: 0.7669283827 | I57: 0.1684842035 | J57: 52 | K57: 21.84614253 | L57: 10.84242102 | M57: 718.1905287 | N57: 817.4868698 | O57: 88.45392004 | P57: 99.29634106 | R57: 52 | S57: 1252.757276 | T57: 2624.910855 | U57: 3877.668132 | V57: 148.1958815 | W57: 1400.953158 | X57: 100 | Y57: 1.873660686 | Z57: 2.767878504 | AA57: 26.24910855 | AB57: 38.77668132 | AC57: 12.52757276 | AD57: 10.57821817 | AE57: 89.42178183
H58: 0.8987569269 | I58: 0.8735268993 | J58: 53 | K58: 34.35346483 | L58: 14.3676345 | M58: 740.0366713 | N58: 831.8545043 | O58: 77.45019853 | P58: 91.81783303 | R58: 53 | S58: 1250.672557 | T58: 1825.873834 | U58: 3076.546392 | V58: 247.6598783 | W58: 1498.332436 | X58: 100 | Y58: 1.218603956 | Z58: 2.053313616 | AA58: 18.25873834 | AB58: 30.76546392 | AC58: 12.50672557 | AD58: 16.52903403 | AE58: 83.47096597
H59: 0.7703238965 | I59: 0.6126408796 | J59: 54 | K59: 22.06627812 | L59: 13.0632044 | M59: 774.3901361 | N59: 844.9177087 | O59: 57.46436819 | P59: 70.52757259 | R59: 54 | S59: 1263.266592 | T59: 2306.488143 | U59: 3569.754735 | V59: 216.9485737 | W59: 1480.215166 | X59: 100 | Y59: 1.558211398 | Z59: 2.411645832 | AA59: 23.06488143 | AB59: 35.69754735 | AC59: 12.63266592 | AD59: 14.65655661 | AE59: 85.34344339
H60: 0.2117589226 | I60: 0.6449331983 | J60: 55 | K60: 3.569269503 | L60: 13.22466599 | M60: 796.4564142 | N60: 858.1423747 | O60: 48.46129447 | P60: 61.68596046 | R60: 55 | S60: 1234.792824 | T60: 2500.572204 | U60: 3735.365028 | V60: 306.2421905 | W60: 1541.035014 | X60: 100 | Y60: 1.622657617 | Z60: 2.423932613 | AA60: 25.00572204 | AB60: 37.35365028 | AC60: 12.34792824 | AD60: 19.87250048 | AE60: 80.12749952
H61: 0.1812469581 | I61: 0.5856736139 | J61: 56 | K61: 2.999591651 | L61: 12.92836807 | M61: 800.0256837 | N61: 871.0707427 | O61: 58.11669096 | P61: 71.04505902 | R61: 56 | S61: 1242.157651 | T61: 2156.223226 | U61: 3398.380877 | V61: 311.8420844 | W61: 1553.999735 | X61: 100 | Y61: 1.38753127 | Z61: 2.186860654 | AA61: 21.56223226 | AB61: 33.98380877 | AC61: 12.42157651 | AD61: 20.06706162 | AE61: 79.93293838
H62: 0.9926426839 | I62: 0.5025323053 | J62: 57 | K62: 73.68090117 | L62: 12.51266153 | M62: 803.0252754 | N62: 883.5834043 | O62: 68.04546737 | P62: 80.5581289 | R62: 57 | S62: 1232.32295 | T62: 1122.960376 | U62: 2355.283326 | V62: 329.9146753 | W62: 1562.237625 | X62: 100 | Y62: 0.7188153443 | Z62: 1.507634491 | AA62: 11.22960376 | AB62: 23.55283326 | AC62: 12.3232295 | AD62: 21.11808537 | AE62: 78.88191463
H63: 0.8965182005 | I63: 0.540961409 | J63: 58 | K63: 34.02539298 | L63: 12.70480705 | M63: 876.7061765 | N63: 896.2882113 | O63: 6.87722773 | P63: 19.58203478 | R63: 58 | S63: 1242.799605 | T63: 3456.063827 | U63: 4698.863432 | V63: 315.0894211 | W63: 1557.889026 | X63: 100 | Y63: 2.218427481 | Z63: 3.016173395 | AA63: 34.56063827 | AB63: 46.98863432 | AC63: 12.42799605 | AD63: 20.22540861 | AE63: 79.77459139
H64: 0.1933140487 | I64: 0.8150304105 | J64: 59 | K64: 3.222312633 | L64: 14.07515205 | M64: 910.7315695 | N64: 924.8067216 | O64: -2.486899575e-14 | P64: 14.07515205 | R64: 59 | S64: 1263.652142 | T64: 1812.504411 | U64: 3076.156553 | V64: 297.5048875 | W64: 1561.157029 | X64: 100 | Y64: 1.161000705 | Z64: 1.970433784 | AA64: 18.12504411 | AB64: 30.76156553 | AC64: 12.63652142 | AD64: 19.05669205 | AE64: 80.94330795
H65: 0.1228783057 | I65: 0.238969788 | J65: 60 | K65: 1.966643014 | L65: 11.19484894 | M65: 913.9538822 | N65: 936.0015705 | O65: 10.85283942 | P65: 22.04768836 | R65: 60 | S65: 1262.497905 | T65: 2061.188669 | U65: 3323.686574 | V65: 370.8766747 | W65: 1633.37458 | X65: 100 | Y65: 1.261920379 | Z65: 2.034858761 | AA65: 20.61188669 | AB65: 33.23686574 | AC65: 12.62497905 | AD65: 22.70616179 | AE65: 77.29383821
H66: 0.5909924027 | I66: 0.1612003704 | J66: 61 | K66: 13.41032322 | L66: 10.80600185 | M66: 915.9205252 | N66: 946.8075724 | O66: 20.08104535 | P66: 30.8870472 | R66: 61 | S66: 1258.971807 | T66: 2767.82927 | U66: 4026.801077 | V66: 423.3626834 | W66: 1682.33449 | X66: 100 | Y66: 1.645231246 | Z66: 2.393579339 | AA66: 27.6782927 | AB66: 40.26801077 | AC66: 12.58971807 | AD66: 25.16519074 | AE66: 74.83480926
H67: 0.07745441616 | I67: 0.4138226366 | J67: 62 | K67: 1.209277364 | L67: 12.06911318 | M67: 929.3308484 | N67: 958.8766856 | O67: 17.47672398 | P67: 29.54583716 | R67: 62 | S67: 1269.140692 | T67: 6006.472956 | U67: 7275.613648 | V67: 26.42534039 | W67: 1295.566032 | X67: 100 | Y67: 4.636176626 | Z67: 5.615779873 | AA67: 60.06472956 | AB67: 72.75613648 | AC67: 12.69140692 | AD67: 2.039675302 | AE67: 97.9603247
H68: 0.9693281153 | I68: 0.0156579834 | J68: 63 | K68: 52.26613277 | L68: 10.07828992 | M68: 930.5401258 | N68: 968.9549755 | O68: 28.3365598 | P68: 38.41484972 | R68: 63 | S68: 1230.938441 | T68: 1366.372394 | U68: 2597.310835 | V68: 348.7538036 | W68: 1579.692244 | X68: 100 | Y68: 0.8649611334 | Z68: 1.644187875 | AA68: 13.66372394 | AB68: 25.97310835 | AC68: 12.30938441 | AD68: 22.07732581 | AE68: 77.92267419
H69: 0.8099037765 | I69: 0.7666883041 | J69: 64 | K69: 24.90337343 | L69: 13.83344152 | M69: 982.8062585 | N69: 996.6397 | O69: -5.151434834e-14 | P69: 13.83344152 | R69: 64 | S69: 1248.34512 | T69: 3731.04651 | U69: 4979.391629 | V69: 135.7914679 | W69: 1384.136588 | X69: 100 | Y69: 2.695576826 | Z69: 3.597471286 | AA69: 37.3104651 | AB69: 49.79391629 | AC69: 12.4834512 | AD69: 9.810554037 | AE69: 90.18944596
H70: 0.8763744881 | I70: 0.9695544534 | J70: 65 | K70: =-$D$6*LN(1-H70) -> 31.35747523 | L70: 14.84777227 | M70: 1007.709632 | N70: 1022.557404 | O70: 1.776356839e-14 | P70: 14.84777227 | R70: 65 | S70: 1250.796389 | T70: 2007.368859 | U70: 3258.165249 | V70: 230.6496714 | W70: 1481.446061 | X70: 100 | Y70: 1.355006377 | Z70: 2.199314126 | AA70: 20.07368859 | AB70: 32.58165249 | AC70: 12.50796389 | AD70: 15.56922506 | AE70: 84.43077494
H71: 0.1641240467 | I71: 0.875662929 | J71: 66 | K71: 2.689125871 | L71: 14.37831465 | M71: 1039.067107 | N71: 1053.445422 | O71: 2.131628207e-14 | P71: 14.37831465 | R71: 66 | S71: 1272.910825 | T71: 1795.807482 | U71: 3068.718307 | V71: 156.5578365 | W71: 1429.468662 | X71: 100 | Y71: 1.256276216 | Z71: 2.146754517 | AA71: 17.95807482 | AB71: 30.68718307 | AC71: 12.72910825 | AD71: 10.9521699 | AE71: 89.0478301
H72: 0.7542529488 | I72: 0.4124724684 | J72: 67 | K72: 21.05178779 | L72: 12.06236234 | M72: 1041.756233 | N72: 1065.507784 | O72: 11.68918877 | P72: 23.75155112 | R72: =+R71+1 -> 67 | S72: 1248.453434 | T72: 2729.827912 | U72: 3978.281346 | V72: 245.5939559 | W72: 1494.04739 | X72: 100 | Y72: 1.827136094 | Z72: 2.662754457 | AA72: 27.29827912 | AB72: 39.78281346 | AC72: 12.48453434 | AD72: 16.43816372 | AE72: 83.56183628
H73: 0.3214362283 | I73: 0.6938634702 | J73: 68 | K73: 5.816652222 | L73: 13.46931735 | M73: 1062.808021 | N73: 1078.977102 | O73: 2.699763325 | P73: 16.16908068 | R73: 68 | S73: 1257.339691 | T73: 3053.215419 | U73: 4310.55511 | V73: 345.1517532 | W73: 1602.491444 | X73: 100 | Y73: 1.905292805 | Z73: 2.689908346 | AA73: 30.53215419 | AB73: 43.1055511 | AC73: 12.57339691 | AD73: 21.53844592 | AE73: 78.46155408
H74: 0.4575555889 | I74: 0.2379790719 | J74: 69 | K74: 9.175045002 | L74: 11.18989536 | M74: 1068.624673 | N74: 1090.166997 | O74: 10.35242845 | P74: 21.54232381 | R74: 69 | S74: 1251.834331 | T74: 1380.611284 | U74: 2632.445614 | V74: 305.1314602 | W74: 1556.965791 | X74: 100 | Y74: 0.8867319319 | Z74: 1.690753663 | AA74: 13.80611284 | AB74: 26.32445614 | AC74: 12.51834331 | AD74: 19.59782688 | AE74: 80.40217312
H75: 0.9760420622 | I75: 0.9832211234 | J75: 70 | K75: 55.97183368 | L75: 14.91610562 | M75: 1077.799718 | N75: 1105.083102 | O75: 12.36727881 | P75: 27.28338443 | R75: 70 | S75: 1254.13883 | T75: 1639.936388 | U75: 2894.075218 | V75: 455.3423048 | W75: 1709.481135 | X75: 100 | Y75: 0.959318213 | Z75: 1.692955341 | AA75: 16.39936388 | AB75: 28.94075218 | AC75: 12.5413883 | AD75: 26.63628721 | AE75: 73.36371279
H76: 0.1579933048 | I76: 0.2089641637 | J76: 71 | K76: 2.579509699 | L76: 11.04482082 | M76: 1133.771552 | N76: 1144.816373 | O76: -9.414691249e-14 | P76: 11.04482082 | R76: 71 | S76: 1272.80274 | T76: 4206.230673 | U76: 5479.033413 | V76: 84.32969234 | W76: 1357.132432 | X76: 100 | Y76: 3.099351672 | Z76: 4.037213527 | AA76: 42.06230673 | AB76: 54.79033413 | AC76: 12.7280274 | AD76: 6.213814537 | AE76: 93.78618546
H77: 0.7481937682 | I77: 0.3289913028 | J77: 72 | K77: 20.68643113 | L77: 11.64495651 | M77: 1136.351061 | N77: 1156.461329 | O77: 8.465311119 | P77: 20.11026763 | R77: 72 | S77: 1254.65438 | T77: 4828.988496 | U77: 6083.642875 | V77: 138.7829717 | W77: 1393.437351 | X77: 100 | Y77: 3.465522502 | Z77: 4.365924934 | AA77: 48.28988496 | AB77: 60.83642875 | AC77: 12.5465438 | AD77: 9.959756826 | AE77: 90.04024317
H78: 0.6196342635 | I78: 0.4530033082 | J78: 73 | K78: 14.49933037 | L78: 12.26501654 | M78: 1157.037493 | N78: 1169.302509 | O78: 1.421085472e-14 | P78: 12.26501654 | R78: 73 | S78: 1264.537215 | T78: 3198.966353 | U78: 4463.503568 | V78: 99.89486349 | W78: 1364.432079 | X78: 100 | Y78: 2.344540562 | Z78: 3.271327051 | AA78: 31.98966353 | AB78: 44.63503568 | AC78: 12.64537215 | AD78: 7.321351136 | AE78: 92.67864886
H79: 0.1653431325 | I79: 0.1654103453 | J79: 74 | K79: 2.711018637 | L79: 10.82705173 | M79: 1171.536823 | N79: 1182.363875 | O79: 7.283063042e-14 | P79: 10.82705173 | R79: 74 | S79: 1244.489327 | T79: 1401.029352 | U79: 2645.518679 | V79: 408.0658386 | W79: 1652.555166 | X79: 100 | Y79: 0.8477958138 | Z79: 1.600865577 | AA79: 14.01029352 | AB79: 26.45518679 | AC79: 12.44489327 | AD79: 24.69302369 | AE79: 75.30697631
H80: 0.7289245769 | I80: 0.7451051838 | J80: 75 | K80: 19.58037274 | L80: 13.72552592 | M80: 1174.247842 | N80: 1196.089401 | O80: 8.11603309 | P80: 21.84155901 | R80: 75 | S80: 1251.123757 | T80: 1304.361764 | U80: 2555.48552 | V80: 379.4607767 | W80: 1630.584534 | X80: 100 | Y80: 0.7999350765 | Z80: 1.567220508 | AA80: 13.04361764 | AB80: 25.5548552 | AC80: 12.51123757 | AD80: 23.27145689 | AE80: 76.72854311
H81: 0.1876967108 | I81: 0.5904117877 | J81: 76 | K81: 3.118222495 | L81: 12.95205894 | M81: 1193.828214 | N81: 1209.04146 | O81: 2.261186268 | P81: 15.21324521 | R81: 76 | S81: 1260.187224 | T81: 983.2988671 | U81: 2243.486091 | V81: 479.9155747 | W81: 1740.102798 | X81: 100 | Y81: 0.5650809068 | Z81: 1.289283652 | AA81: 9.832988671 | AB81: 22.43486091 | AC81: 12.60187224 | AD81: 27.57972547 | AE81: 72.42027453
H82: 0.8780872349 | I82: 0.9351390357 | J82: 77 | K82: 31.56674296 | L82: 14.67569518 | M82: 1196.946437 | N82: 1223.717155 | O82: 12.09502271 | P82: 26.77071789 | R82: 77 | S82: 1249.198331 | T82: 4107.508935 | U82: 5356.707265 | V82: 205.8705461 | W82: 1455.068877 | X82: 100 | Y82: 2.822896565 | Z82: 3.681411479 | AA82: 41.07508935 | AB82: 53.56707265 | AC82: 12.49198331 | AD82: 14.14850866 | AE82: 85.85149134
H83: 0.5090611486 | I83: 0.9697372477 | J83: 78 | K83: 10.67153547 | L83: 14.84868624 | M83: 1228.51318 | N83: 1243.361866 | O83: 1.776356839e-14 | P83: 14.84868624 | R83: 78 | S83: 1243.877915 | T83: 2603.501451 | U83: 3847.379366 | V83: 152.3613456 | W83: 1396.239261 | X83: 100 | Y83: 1.864652803 | Z83: 2.755530141 | AA83: 26.03501451 | AB83: 38.47379366 | AC83: 12.43877915 | AD83: 10.91226625 | AE83: 89.08773375
H84: 0.09912199823 | I84: 0.7100994212 | J84: 79 | K84: 1.565781505 | L84: 13.55049711 | M84: 1239.184715 | N84: 1256.912363 | O84: 4.177150769 | P84: 17.72764787 | R84: 79 | S84: 1259.214091 | T84: 2275.044534 | U84: 3534.258624 | V84: 393.0366872 | W84: 1652.250778 | X84: 100 | Y84: 1.376936579 | Z84: 2.13905702 | AA84: 22.75044534 | AB84: 35.34258624 | AC84: 12.59214091 | AD84: 23.78795595 | AE84: 76.21204405
H85: 0.4144082931 | I85: 0.1101216229 | J85: 80 | K85: 8.026987172 | L85: 10.55060811 | M85: 1240.750497 | N85: 1267.462971 | O85: 16.16186637 | P85: 26.71247448 | R85: 80 | S85: 1264.644421 | T85: 1906.14308 | U85: 3170.787501 | V85: 353.329169 | W85: 1617.97359 | X85: 100 | Y85: 1.178105187 | Z85: 1.9597276 | AA85: 19.0614308 | AB85: 31.70787501 | AC85: 12.64644421 | AD85: 21.83775874 | AE85: 78.16224126
H86: 0.7137025439 | I86: 0.6258874774 | J86: 81 | K86: 18.76085928 | L86: 13.12943739 | M86: 1248.777484 | N86: 1280.592409 | O86: 18.68548731 | P86: 31.8149247 | R86: 81 | S86: 1254.126094 | T86: 1685.177327 | U86: 2939.303421 | V86: 379.506759 | W86: 1633.632853 | X86: 100 | Y86: 1.031552055 | Z86: 1.799243579 | AA86: 16.85177327 | AB86: 29.39303421 | AC86: 12.54126094 | AD86: 23.23084763 | AE86: 76.76915237
H87: 0.3175676286 | I87: 0.9573004862 | J87: 82 | K87: 5.731377695 | L87: 14.78650243 | M87: 1267.538343 | N87: 1295.378911 | O87: 13.05406542 | P87: 27.84056785 | R87: 82 | S87: 1245.664237 | T87: 1874.386376 | U87: 3120.050614 | V87: 340.8574463 | W87: 1586.521684 | X87: 100 | Y87: 1.181443907 | Z87: 1.966598153 | AA87: 18.74386376 | AB87: 31.20050614 | AC87: 12.45664237 | AD87: 21.48457533 | AE87: 78.51542467
H88: 0.04515129612 | I88: 0.7904285091 | J88: 83 | K88: 0.6930356447 | L88: 13.95214255 | M88: 1273.269721 | N88: 1309.331054 | O88: 22.10919015 | P88: 36.0613327 | R88: 83 | S88: 1263.01387 | T88: 2338.932228 | U88: 3601.946098 | V88: 222.0753277 | W88: 1485.089197 | X88: 100 | Y88: 1.574943938 | Z88: 2.425407244 | AA88: 23.38932228 | AB88: 36.01946098 | AC88: 12.6301387 | AD88: 14.95366932 | AE88: 85.04633068
H89: 0.08206459376 | I89: 0.2868277086 | J89: 84 | K89: 1.284423816 | L89: 11.43413854 | M89: 1273.962757 | N89: 1320.765192 | O89: 35.36829705 | P89: 46.8024356 | R89: 84 | S89: 1253.14892 | T89: 1374.686594 | U89: 2627.835514 | V89: 433.590565 | W89: 1686.739485 | X89: 100 | Y89: 0.8149963915 | Z89: 1.557937984 | AA89: 13.74686594 | AB89: 26.27835514 | AC89: 12.5314892 | AD89: 25.7058407 | AE89: 74.2941593
H90: 0.7486441977 | I90: 0.3880127793 | J90: 85 | K90: 20.71328707 | L90: 11.9400639 | M90: 1275.24718 | N90: 1332.705256 | O90: 45.51801178 | P90: 57.45807568 | R90: 85 | S90: 1234.083811 | T90: 1620.706684 | U90: 2854.790495 | V90: 279.3479334 | W90: 1513.431744 | X90: 100 | Y90: 1.070881915 | Z90: 1.886302773 | AA90: 16.20706684 | AB90: 28.54790495 | AC90: 12.34083811 | AD90: 18.45791424 | AE90: 81.54208576
H91: 0.6573794774 | I91: 0.7567445576 | J91: 86 | K91: 16.06697688 | L91: 13.78372279 | M91: 1295.960467 | N91: 1346.488979 | O91: 36.74478861 | P91: 50.5285114 | R91: 86 | S91: 1234.605557 | T91: 3956.310458 | U91: 5190.916015 | V91: 214.6209498 | W91: 1449.226507 | X91: 100 | Y91: 2.729946244 | Z91: 3.581852796 | AA91: 39.56310458 | AB91: 51.90916015 | AC91: 12.34605557 | AD91: 14.80934477 | AE91: 85.19065523
H92: 0.6154686689 | I92: 0.5071916546 | J92: 87 | K92: 14.33595012 | L92: 12.53595827 | M92: 1312.027444 | N92: 1359.024937 | O92: 34.46153451 | P92: 46.99749279 | R92: 87 | S92: 1243.730774 | T92: 3483.445875 | U92: 4727.176649 | V92: 113.797313 | W92: 1357.528087 | X92: 100 | Y92: 2.566021218 | Z92: 3.482194361 | AA92: 34.83445875 | AB92: 47.27176649 | AC92: 12.43730774 | AD92: 8.382685712 | AE92: 91.61731429
H93: 0.9887644379 | I93: 0.916042997 | J93: 88 | K93: 67.33007013 | L93: 14.58021499 | M93: 1326.363394 | N93: 1373.605152 | O93: 32.66154267 | P93: 47.24175765 | R93: 88 | S93: 1244.375522 | T93: 5600.978342 | U93: 6845.353863 | V93: 278.937938 | W93: 1523.31346 | X93: 100 | Y93: 3.676839002 | Z93: 4.49372637 | AA93: 56.00978342 | AB93: 68.45353863 | AC93: 12.44375522 | AD93: 18.31126327 | AE93: 81.68873673
H94: 0.997843077 | I94: 0.491069505 | J94: 89 | K94: 92.0860891 | L94: 12.45534753 | M94: 1393.693465 | N94: 1406.148812 | O94: 6.394884622e-14 | P94: 12.45534753 | R94: 89 | S94: 1251.228446 | T94: 3145.311445 | U94: 4396.539891 | V94: 109.6094937 | W94: 1360.837939 | X94: 100 | Y94: 2.311304935 | Z94: 3.230759346 | AA94: 31.45311445 | AB94: 43.96539891 | AC94: 12.51228446 | AD94: 8.054558923 | AE94: 91.94544108
H95: 0.218780476 | I95: 0.1053309138 | J95: 90 | K95: 3.70348632 | L95: 10.52665457 | M95: 1485.779554 | N95: 1496.306208 | O95: 0 | P95: 10.52665457 | R95: 90 | S95: 1272.682016 | T95: 1179.734945 | U95: 2452.41696 | V95: 490.5282768 | W95: 1763.210293 | X95: 100 | Y95: 0.6690835175 | Z95: 1.390881718 | AA95: 11.79734945 | AB95: 24.5241696 | AC95: 12.72682016 | AD95: 27.82017998 | AE95: 72.17982002
H96: 0.8922049551 | I96: 0.9371233642 | J96: 91 | K96: 33.41285381 | L96: 14.68561682 | M96: 1489.48304 | N96: 1510.991825 | O96: 6.823168248 | P96: 21.50878507 | R96: 91 | S96: 1253.169295 | T96: 2588.650916 | U96: 3841.820211 | V96: 152.637286 | W96: 1405.806581 | X96: 100 | Y96: 1.84139906 | Z96: 2.732822754 | AA96: 25.88650916 | AB96: 38.41820211 | AC96: 12.53169295 | AD96: 10.85763064 | AE96: 89.14236936
H97: 0.6775485409 | I97: 0.7653371884 | J97: 92 | K97: 16.97704003 | L97: 13.82668594 | M97: 1522.895894 | N97: 1536.72258 | O97: 6.217248938e-14 | P97: 13.82668594 | R97: 92 | S97: 1258.620218 | T97: 1823.841303 | U97: 3082.461521 | V97: 239.1702479 | W97: 1497.790466 | X97: 100 | Y97: 1.217687884 | Z97: 2.058005837 | AA97: 18.23841303 | AB97: 30.82461521 | AC97: 12.58620218 | AD97: 15.96820473 | AE97: 84.03179527
H98: 0.6219245317 | I98: 0.2231708408 | J98: 93 | K98: 14.58992177 | L98: 11.1158542 | M98: 1539.872934 | N98: 1550.988788 | O98: -1.598721155e-14 | P98: 11.1158542 | R98: 93 | S98: 1263.183171 | T98: 1721.158697 | U98: 2984.341868 | V98: 243.1600663 | W98: 1506.343237 | X98: 100 | Y98: 1.142607246 | Z98: 1.981183169 | AA98: 17.21158697 | AB98: 29.84341868 | AC98: 12.63183171 | AD98: 16.14240768 | AE98: 83.85759232
H99: 0.08991692775 | I99: 0.1286662009 | J99: 94 | K99: 1.413290932 | L99: 10.643331 | M99: 1554.462856 | N99: 1565.106187 | O99: -1.776356839e-14 | P99: 10.643331 | R99: 94 | S99: 1257.540089 | T99: 1750.522681 | U99: 3008.06277 | V99: 295.6044224 | W99: 1553.144512 | X99: 100 | Y99: 1.127082939 | Z99: 1.936756527 | AA99: 17.50522681 | AB99: 30.0806277 | AC99: 12.57540089 | AD99: 19.03264121 | AE99: 80.96735879
H100: 0.9790887131 | I100: 0.1594266836 | J100: 95 | K100: 58.01199334 | L100: 10.79713342 | M100: 1555.876147 | N100: 1575.90332 | O100: 9.230040073 | P100: 20.02717349 | R100: 95 | S100: 1253.777676 | T100: 2868.76991 | U100: 4122.547586 | V100: 163.0033277 | W100: 1416.781004 | X100: 100 | Y100: 2.024850631 | Z100: 2.909798744 | AA100: 28.6876991 | AB100: 41.22547586 | AC100: 12.53777676 | AD100: 11.50518868 | AE100: 88.49481132
H101: 0.07157780947 | I101: 0.8087951906 | J101: 96 | K101: 1.114030544 | L101: 14.04397595 | M101: 1613.88814 | N101: 1627.932116 | O101: -7.105427358e-14 | P101: 14.04397595 | R101: 96 | S101: 1267.633343 | T101: 1579.041167 | U101: 2846.67451 | V101: 567.1049241 | W101: 1834.738267 | X101: 100 | Y101: 0.8606356533 | Z101: 1.551542561 | AA101: 15.79041167 | AB101: 28.4667451 | AC101: 12.67633343 | AD101: 30.9093092 | AE101: 69.0906908
H102: 0.1537499624 | I102: 0.1240902027 | J102: 97 | K102: 2.504106155 | L102: 10.62045101 | M102: 1615.00217 | N102: 1638.552567 | O102: 12.92994541 | P102: 23.55039642 | R102: 97 | S102: 1254.777133 | T102: 3047.492109 | U102: 4302.269241 | V102: 169.8977912 | W102: 1424.674924 | X102: 100 | Y102: 2.139078928 | Z102: 3.019825203 | AA102: 30.47492109 | AB102: 43.02269241 | AC102: 12.54777133 | AD102: 11.92537247 | AE102: 88.07462753
H103: 0.2305829876 | I103: 0.3082871197 | J103: 98 | K103: 3.931832665 | L103: 11.5414356 | M103: 1617.506277 | N103: 1650.094002 | O103: 21.04629027 | P103: 32.58772587 | R103: 98 | S103: 1258.308601 | T103: 4687.16454 | U103: 5945.473141 | V103: 16.03996767 | W103: 1274.348569 | X103: 100 | Y103: 3.678086713 | Z103: 4.665499916 | AA103: 46.8716454 | AB103: 59.45473141 | AC103: 12.58308601 | AD103: 1.258679773 | AE103: 98.74132023
H104: 0.2470371776 | I104: 0.1295749117 | J104: 99 | K104: 4.256091376 | L104: 10.64787456 | M104: 1621.438109 | N104: 1660.741877 | O104: 28.6558932 | P104: 39.30376776 | R104: 99 | S104: 1237.171945 | T104: 1071.353831 | U104: 2308.525777 | V104: 292.2413272 | W104: 1529.413273 | X104: 100 | Y104: 0.7004998913 | Z104: 1.509419212 | AA104: 10.71353831 | AB104: 23.08525777 | AC104: 12.37171945 | AD104: 19.10806794 | AE104: 80.89193206
H105: 0.2184567963 | I105: 0.8107220585 | J105: 100 | K105: 3.697272714 | L105: 14.05361029 | M105: 1625.694201 | N105: 1674.795487 | O105: 35.04767638 | P105: 49.10128667 | R105: 100 | S105: 1266.911987 | T105: 2238.418135 | U105: 3505.330122 | V105: 354.6648443 | W105: 1621.576831 | X105: 100 | Y105: 1.380395977 | Z105: 2.161679949 | AA105: 22.38418135 | AB105: 35.05330122 | AC105: 12.66911987 | AD105: 21.87160284 | AE105: 78.12839716
Q107: Média | S107: =AVERAGE(S5:S105) -> 1252.175003 | T107: =AVERAGE(T5:T105) -> 2639.759437 | U107: =AVERAGE(U5:U105) -> 3891.93444 | V107: =AVERAGE(V5:V105) -> 268.8060976 | W107: =AVERAGE(W5:W105) -> 1520.9811 | X107: =AVERAGE(X5:X105) -> 100 | Y107: =AVERAGE(Y5:Y105) -> 1.796411454 | Z107: =AVERAGE(Z5:Z105) -> 2.62555755 | AA107: =AVERAGE(AA5:AA105) -> 26.39759437 | AB107: =AVERAGE(AB5:AB105) -> 38.9193444 | AC107: =AVERAGE(AC5:AC105) -> 12.52175003 | AD107: =AVERAGE(AD5:AD105) -> 17.08539039 | AE107: =AVERAGE(AE5:AE105) -> 82.91460961
Q108: D. Padrão | S108: =STDEV(S5:S105) -> 13.00628818 | T108: =STDEV(T5:T105) -> 1277.400919 | U108: 1278.163244 | V108: 129.6535657 | W108: 130.4396948 | X108: 0 | Y108: 0.9900457039 | Z108: 1.044547072 | AA108: 12.77400919 | AB108: 12.78163244 | AC108: 0.1300628818 | AD108: 7.026547896 | AE108: 7.026547896

Sheet Sheet3
B1: Exemplo 5 - Simulação
B3: Chegada Exponencial de média | E3: 15
B4: Serviço Uniforme de min - máx | C4: min-max | E4: 10 | F4: 15
B6: Nº Clientes | C6: 10
G7: Próx. | I7: Próx. | J7: Próxima | K7: Próxima | L7: Próximo | M7: Tempo | O7: NPA | P7: NPA | Q7: Nº | R7: Intervalo | S7: Tempo | T7: Tempo | U7: Tempo | V7: Tempo | W7: Tempo
B8: Cliente Ch. | C8: Cliente Nº | D8: T. Simul. | E8: Nº Clientes | F8: NPA Ch | G8: Int. CH | H8: NPA Par | I8: T. Serv. | J8: Chegada | K8: Partida | L8: Acontec. | M8: Espera | O8: Chegadas | P8: Seviço | Q8: Clientes | R8: Chegadas | S8: Serviço | T8: Chegada | U8: Partida | V8: Fila | W8: Sistema
B9: 1 | C9: =SUM($B$9:B9) -> 1 | D9: 0 | E9: 1 | F9: =RAND() -> 0.1795946464 | G9: =-$E$3*LN(F9) -> 25.75579398 | H9: =RAND() -> 0.03672490904 | I9: =$E$4+H9*($F$4-$E$4) -> 10.18362455 | J9: =+D9+G9 -> 25.75579398 | K9: =+D9+I9 -> 10.18362455 | L9: =IF(J9<K9,"chegada","partida") -> partida | M9: =IF(E9<2,0,(E9-1)*(D10-D9)) -> 0 | O9: =RAND() -> 0.9915004095 | P9: =RAND() -> 0.7715883499 | Q9: 1 | R9: =-$E$3*LN(O9) -> 0.1280387708 | S9: =$E$4+P9*($F$4-$E$4) -> 13.85794175 | T9: 0 | U9: =+T9+S9 -> 13.85794175 | V9: =+U9-T9-S9 -> 0 | W9: =+U9-T9 -> 13.85794175
B10: =IF(SUM(E9:L9)=0,0,IF(L9="partida",0,1)) -> 0 | C10: =SUM($B$9:B10) -> 1 | D10: =IF(L9="partida",K9,J9) -> 10.18362455 | E10: =IF(L9="partida",E9-1,E9+1) -> 0 | F10: =IF(L9="partida", 0,RAND()) -> 0 | G10: =IF(F10=0,0,-$E$3*LN(F10)) -> 0 | H10: =IF(L9="partida",IF(E10=0,0,RAND()),IF(E10>1,0,RAND())) -> 0 | I10: =IF(H10=0,0,$E$4+H10*($F$4-$E$4)) -> 0 | J10: =IF(C10=$C$6,0,+J9+G10) -> 25.75579398 | K10: =IF(D10<K9,K9,IF(I10=0,0,D10+I10)) -> 0 | L10: =IF(C10<$C$6,IF(C10=$C$6,"partida",IF(K10=0,"chegada",IF(J10<K10,"chegada","partida"))),IF(E10=0,0,IF(C10=$C$6,"partida",IF(K10=0,"chegada",IF(J10<K10,"chegada","partida"))))) -> chegada | M10: 0 | O10: =RAND() -> 0.7472681643 | P10: =RAND() -> 0.07396225817 | Q10: =+Q9+1 -> 2 | R10: =-$E$3*LN(O10) -> 4.369967548 | S10: =$E$4+P10*($F$4-$E$4) -> 10.36981129 | T10: =+T9+R9 -> 0.1280387708 | U10: =MAX(T10,U9)+S10 -> 24.22775304 | V10: 13.72990298 | W10: 24.09971427
B11: 1 | C11: =SUM($B$9:B11) -> 2 | D11: 25.75579398 | E11: =IF(L10="partida",E10-1,E10+1) -> 1 | F11: =IF(L10="partida", 0,RAND()) -> 0.9343611394 | G11: 1.018383849 | H11: 0.6096268644 | I11: 13.04813432 | J11: 26.77417783 | K11: 38.8039283 | L11: chegada | M11: 0 | O11: =RAND() -> 0.08423641622 | P11: 0.7778906561 | Q11: 3 | R11: 37.11191932 | S11: 13.88945328 | T11: =+T10+R10 -> 4.498006319 | U11: =MAX(T11,U10)+S11 -> 38.11720632 | V11: 19.72974672 | W11: 33.6192
B12: 1 | C12: =SUM($B$9:B12) -> 3 | D12: 26.77417783 | E12: =IF(L11="partida",E11-1,E11+1) -> 2 | F12: =IF(L11="partida", 0,RAND()) -> 0.7695667273 | G12: 3.928914214 | H12: 0 | I12: 0 | J12: 30.70309204 | K12: 38.8039283 | L12: chegada | M12: 3.928914214 | O12: 0.9805400444 | P12: 0.8748517477 | Q12: 4 | R12: 0.294776901 | S12: 14.37425874 | T12: 41.60992564 | U12: 55.98418438 | V12: 0 | W12: 14.37425874
B13: 1 | C13: =SUM($B$9:B13) -> 4 | D13: 30.70309204 | E13: =IF(L12="partida",E12-1,E12+1) -> 3 | F13: =IF(L12="partida", 0,RAND()) -> 0.1746389778 | G13: 26.1755163 | H13: 0 | I13: 0 | J13: 56.87860834 | K13: 38.8039283 | L13: partida | M13: 16.20167252 | O13: 0.7837848225 | P13: 0.04434453322 | Q13: 5 | R13: 3.65431136 | S13: 10.22172267 | T13: 41.90470254 | U13: 66.20590704 | V13: 14.07948184 | W13: 24.3012045
B14: 0 | C14: =SUM($B$9:B14) -> 4 | D14: 38.8039283 | E14: =IF(L13="partida",E13-1,E13+1) -> 2 | F14: =IF(L13="partida", 0,RAND()) -> 0 | G14: 0 | H14: 0.9687945562 | I14: 14.84397278 | J14: 56.87860834 | K14: 53.64790108 | L14: partida | M14: 14.84397278 | O14: 0.8805203509 | P14: 0.205720297 | Q14: 6 | R14: 1.908633576 | S14: 11.02860149 | T14: 45.5590139 | U14: 77.23450853 | V14: 20.64689314 | W14: 31.67549463
B15: 0 | C15: =SUM($B$9:B15) -> 4 | D15: 53.64790108 | E15: =IF(L14="partida",E14-1,E14+B15) -> 1 | F15: =IF(C15=$C$6,0, RAND()) -> 0.7236254623 | G15: 4.852220066 | H15: 0.4765390577 | I15: 12.38269529 | J15: 61.73082841 | K15: 66.03059637 | L15: chegada | M15: 0 | O15: 0.6899923703 | P15: 0.1057860563 | Q15: 7 | R15: 5.566121085 | S15: 10.52893028 | T15: 47.46764747 | U15: 87.76343881 | V15: 29.76686105 | W15: 40.29579133
B16: 1 | C16: =SUM($B$9:B16) -> 5 | D16: 61.73082841 | E16: 2 | F16: 0.8433133799 | G16: 2.556249696 | H16: 0 | I16: 0 | J16: 64.2870781 | K16: 66.03059637 | L16: chegada | M16: 2.556249696 | O16: 0.6630294027 | P16: 0.8553459329 | Q16: 8 | R16: 6.164039127 | S16: 14.27672966 | T16: 53.03376856 | U16: 102.0401685 | V16: 34.72967025 | W16: 49.00639991
B17: 1 | C17: =SUM($B$9:B17) -> 6 | D17: 64.2870781 | E17: 3 | F17: 0.8204541725 | G17: 2.968458348 | H17: 0 | I17: 0 | J17: 67.25553645 | K17: 66.03059637 | L17: partida | M17: 3.487036535 | O17: 0.909236293 | P17: 0.9202888497 | Q17: 9 | R17: 1.427254054 | S17: 14.60144425 | T17: 59.19780769 | U17: 116.6416127 | V17: 42.84236079 | W17: 57.44380503
B18: 0 | C18: =SUM($B$9:B18) -> 6 | D18: 66.03059637 | E18: 2 | F18: 0.8840082126 | G18: 1.849333892 | H18: =IF(L17=0,0,IF(L17="partida",IF(E18=0,0,RAND()),IF(E18>1,0,RAND()))) -> 0.1796768084 | I18: 10.89838404 | J18: 69.10487034 | K18: 76.92898041 | L18: chegada | M18: 3.074273972 | O18: 0.9394887177 | P18: 0.8375949923 | Q18: 10 | R18: 0.9362920353 | S18: 14.18797496 | T18: 60.62506174 | U18: 130.8295877 | V18: 56.01655098 | W18: 70.20452594
B19: 1 | C19: =SUM($B$9:B19) -> 7 | D19: 69.10487034 | E19: 3 | F19: 0.7188059281 | G19: 4.952458154 | H19: 0 | I19: 0 | J19: 74.0573285 | K19: 76.92898041 | L19: chegada | M19: 9.904916308
B20: 1 | C20: =SUM($B$9:B20) -> 8 | D20: 74.0573285 | E20: 4 | F20: 0.5341661401 | G20: 9.40572547 | H20: 0 | I20: 0 | J20: 83.46305397 | K20: 76.92898041 | L20: partida | M20: 8.614955748
B21: 0 | C21: =SUM($B$9:B21) -> 8 | D21: 76.92898041 | E21: 3 | F21: 0.6554053236 | G21: 6.337521302 | H21: 0.93730292 | I21: 14.6865146 | J21: 89.80057527 | K21: 91.61549501 | L21: chegada | M21: 25.74318971
B22: 1 | C22: =SUM($B$9:B22) -> 9 | D22: 89.80057527 | E22: 4 | F22: 0.9342891014 | G22: 1.019540374 | H22: 0 | I22: 0 | J22: 90.82011564 | K22: 91.61549501 | L22: chegada | M22: 3.058621122
B23: 1 | C23: =SUM($B$9:B23) -> 10 | D23: 90.82011564 | E23: 5 | F23: 0 | G23: 0 | H23: 0 | I23: 0 | J23: 0 | K23: 91.61549501 | L23: partida | M23: 3.18151748
B24: 0 | C24: =SUM($B$9:B24) -> 10 | D24: 91.61549501 | E24: 4 | F24: 0 | G24: 0 | H24: 0.9622144173 | I24: 14.81107209 | J24: 0 | K24: 106.4265671 | L24: partida | M24: 44.43321626
B25: 0 | C25: =SUM($B$9:B25) -> 10 | D25: 106.4265671 | E25: 3 | F25: 0 | G25: 0 | H25: 0.6875099596 | I25: 13.4375498 | J25: 0 | K25: 119.8641169 | L25: partida | M25: 26.8750996
B26: 0 | C26: =SUM($B$9:B26) -> 10 | D26: 119.8641169 | E26: 2 | F26: 0 | G26: 0 | H26: 0.1513392631 | I26: 10.75669632 | J26: 0 | K26: 130.6208132 | L26: partida | M26: 10.75669632
B27: 0 | C27: =SUM($B$9:B27) -> 10 | D27: 130.6208132 | E27: 1 | F27: 0 | G27: 0 | H27: 0.9162973835 | I27: 14.58148692 | J27: 0 | K27: 145.2023001 | L27: partida | M27: 0
B28: 0 | C28: =SUM($B$9:B28) -> 10 | D28: 145.2023001 | E28: 0 | F28: 0 | G28: 0 | H28: 0 | I28: 0 | J28: 0 | K28: 0 | L28: 0 | M28: 0
B29: 0 | C29: =SUM($B$9:B29) -> 10 | D29: 0 | E29: 0 | F29: 0 | G29: 0 | H29: 0 | I29: 0 | J29: 0 | K29: 0 | L29: 0 | M29: 0
B30: 0 | C30: =SUM($B$9:B30) -> 10 | D30: 0 | E30: 0 | F30: 0 | G30: 0 | H30: 0 | I30: 0 | J30: 0 | K30: 0 | L30: 0 | M30: 0
B31: 0 | C31: =SUM($B$9:B31) -> 10 | D31: 0 | E31: 0 | F31: 0 | G31: 0 | H31: 0 | I31: 0 | J31: 0 | K31: 0 | L31: 0 | M31: 0
B32: 0 | C32: =SUM($B$9:B32) -> 10 | D32: 0 | E32: 0 | F32: 0 | G32: 0 | H32: 0 | I32: 0 | J32: 0 | K32: 0 | L32: 0 | M32: 0
B33: 0 | C33: =SUM($B$9:B33) -> 10 | D33: 0 | E33: 0 | F33: 0 | G33: =-15*LN(1-F33) -> 0 | H33: 0 | I33: 0 | J33: 0 | K33: 0 | L33: 0 | M33: 0
E36: Medidas de Performance | R36: Medidas de Performance
C38: Tempo Total de Simulação | G38: =MAX(D9:D33) -> 145.2023001 | H38: minutos | P38: Tempo Total de Simulação | U38: =MAX(U9:U33) -> 130.8295877 | V38: minutos
C39: Tempo de Actividade (Serviço) | G39: =SUM(I9:I29) -> 129.6301307 | H39: " | P39: Tempo Total de Actividade (Serviço) | U39: =SUM(S9:S33) -> 127.3368684 | V39: "
C40: Tempo Total na Fila | G40: =SUM(M9:M29) -> 176.6603323 | H40: " | P40: Tempo Total na Fila | U40: =SUM(V9:V9:V33) -> 231.5414677 | V40: "
C41: Tempo no Sistema | G41: =+G40+G39 -> 306.290463 | H41: " | P41: Tempo Total no Sistema | U41: =SUM(W9:W10:W33) -> 358.8783361 | V41: "
C42: Tempo de Inactividade | G42: =+G38-G39 -> 15.57216944 | H42: " | P42: Tempo Total de Inactividade | U42: =+U38-U39 -> 3.492719316 | V42: "
C44: Comprimento médio da Fila | G44: =+G40/D18 -> 2.675431421 | H44: clientes | P44: Compriento médio fila | U44: =+U40/U38 -> 1.76979437 | V44: clientes
C45: Nº médio clientes no Sistema | G45: =+G41/D18 -> 4.638614215 | H45: " | P45: Nº médio Clientes no Sistema | U45: =+U41/U38 -> 2.743097662 | V45: "
C46: Tempo médio na Fila | G46: =+G40/MAX(C9:C33) -> 17.66603323 | H46: " | P46: Tempo médio na fila | U46: =+U40/MAX(Q9:Q33) -> 23.15414677 | V46: minutos
C47: Tempo médio no Sistema | G47: =+G41/MAX(C9:C33) -> 30.6290463 | H47: " | P47: Tempo médio no Sistema | U47: =+U41/MAX(Q9:Q33) -> 35.88783361 | V47: "
C49: % Utilização média do Serviço | G49: =+G39/G38*100 -> 89.27553529 | H49: % | P49: %Utilização do Sistema | U49: =+U39/U38*100 -> 97.33032919 | V49: %
C50: % Inactividade do Sistema | G50: =+G42/G38*100 -> 10.72446471 | H50: % | P50: % Inactividade do Sistema | U50: =+U42/U38*100 -> 2.669670812 | V50: %
